fUST/lending_fUST_20260128
["ID","MTS","AMOUNT","RATE_DAILY","PERIOD"]
[403823241,1769562650769,-1000.0,0.00025265,10]
[403823242,1769562650780,-1000.0,0.00025265,10]
[403823243,1769562650791,-748.14452339,0.00025305,2]
[403823244,1769562650967,-500.0,0.00012173,2]
[403823245,1769562650976,-500.0,0.00012173,2]
[403823246,1769562650985,-500.0,0.00012173,2]
[403823247,1769562650993,-151.0,0.00019178,2]
[403823248,1769562651002,-151.0,0.00019178,2]
[403823249,1769562651011,-151.0,0.00019178,2]
[403823250,1769562651020,-151.0,0.00019178,2]
[403823251,1769562651028,-151.0,0.00019178,2]
[403823252,1769562651037,-151.0,0.00019178,2]
[403823253,1769562651046,-151.0,0.00019178,2]
[403823254,1769562651055,-151.0,0.00019178,2]
[403823255,1769562651064,-151.0,0.00019178,2]
[403823256,1769562651073,-151.0,0.00019178,2]
[403823257,1769562651081,-5224.56435342,0.00025305,2]
[403823258,1769562651090,-729.0,0.00025325,3]
[403823259,1769562651098,-503.73709049,0.00025333,7]
[403823260,1769562651109,-840.20940277,0.00025333,7]
[403823261,1769562651164,-500.0,0.00011977,2]
[403823262,1769562651173,-151.0,0.00019178,2]
[403823263,1769562651182,-151.0,0.00019178,2]
[403823264,1769562651191,-151.0,0.00019178,2]
[403823265,1769562651200,-292.327144,0.00019178,2]
[403823266,1769562651210,-656.05350674,0.00025333,7]
[403823267,1769562651219,-421.0,0.00025343,2]
[403823268,1769562651228,-167.0,0.00025373,7]
[403823269,1769562651237,-153.0,0.00025418,2]
[403823270,1769562651247,-4288.08,0.00025444,2]
[403823271,1769562651256,-900.0,0.00025469,3]
[403823272,1769562651265,-421.0,0.0002548,2]
[403823273,1769562651274,-1000.0,0.000255,2]
[403823274,1769562651282,-1278.27,0.000256,2]
[403823275,1769562651291,-316.37,0.000256,2]
[403823276,1769562651300,-421.0,0.00025617,2]
[403823277,1769562651309,-350.0,0.00025753,2]
[403823278,1769562651318,-421.0,0.00025754,2]
[403823279,1769562651327,-204.22,0.00025818,2]
[403823280,1769562651335,-421.0,0.00025891,2]
[403823281,1769562651344,-325.29,0.000259,7]
[403823282,1769562651353,-167.96,0.000259,7]
[403823283,1769562651362,-7295.40784558,0.000259,2]
[403823284,1769562651374,-3690.68506604,0.000259,2]
[403823285,1769562651384,-280.70606371,0.000259,2]
[403823286,1769562651395,-778.77913156,0.000259,2]
[403823287,1769562651441,500.0,0.00034996,120]
[403823288,1769562656085,482.85111915,0.00034996,120]
[403823289,1769562664628,500.0,0.00034996,120]
[403823290,1769562665110,575.2253995,0.00034996,120]
[403823291,1769562671968,500.0,0.00034996,120]
[403823292,1769562672002,500.0,0.00034996,120]
[403823293,1769562675744,500.0,0.00034996,120]
[403823294,1769562676193,500.0,0.00034996,120]
[403823295,1769562677445,500.0,0.00034996,120]
[403823296,1769562677535,500.0,0.00034996,120]
[403823297,1769562678184,500.0,0.00034996,120]
[403823298,1769562683449,500.0,0.00034996,120]
[403823299,1769562687039,500.0,0.00034996,120]
[403823300,1769562692885,500.0,0.00034996,120]
[403823301,1769562702734,500.0,0.00034996,120]
[403823302,1769562705789,500.0,0.00034996,120]
[403823303,1769562711227,500.0,0.00034996,120]
[403823304,1769562712784,500.0,0.00034996,120]
[403823305,1769562716408,500.0,0.00034996,120]
[403823306,1769562718116,500.0,0.00034996,120]
[403823307,1769562721516,500.0,0.00034996,120]
[403823308,1769562734949,500.0,0.00034996,120]
[403823309,1769562738463,500.0,0.00034996,120]
[403823310,1769562743240,500.0,0.00034996,120]
[403823311,1769562745494,500.0,0.00034996,120]
[403823312,1769562747555,500.0,0.00034996,120]
[403823313,1769562753672,500.0,0.00034996,120]
[403823314,1769562754203,500.0,0.00034996,120]
[403823315,1769562763120,500.0,0.00034996,120]
[403823316,1769562763648,500.0,0.00034996,120]
[403823317,1769562765118,500.0,0.00034996,120]
[403823318,1769562767077,446.91736505,0.00034996,120]
[403823319,1769562767866,560.47697774,0.00034996,120]
[403823320,1769562768830,500.0,0.00034996,120]
[403823321,1769562768938,500.0,0.00034996,120]
[403823322,1769562772504,500.0,0.00034996,120]
[403823323,1769562774544,245.03282184,0.00034996,120]
[403823324,1769562784146,500.0,0.00034996,120]
[403823325,1769562784393,500.0,0.00034996,120]
[403823326,1769562788382,500.0,0.00034996,120]
[403823327,1769562790866,500.0,0.00034996,120]
[403823328,1769562790960,422.50018567,0.00034996,120]
[403823329,1769562802070,500.0,0.00034996,120]
[403823330,1769562814572,500.0,0.00034996,120]
[403823331,1769562815518,627.51109894,0.00034996,120]
[403823332,1769562816375,500.0,0.00034996,120]
[403823333,1769562828112,500.0,0.00035113,120]
[403823334,1769562828321,500.0,0.00035113,120]
[403823335,1769562828468,154.96717816,0.00035113,120]
[403823336,1769562828566,500.0,0.00035113,120]
[403823337,1769562829168,500.0,0.00035113,120]
[403823338,1769562829446,321.68,0.00035113,120]
[403823339,1769562830271,500.0,0.00035113,120]
[403823340,1769562830513,500.0,0.00035113,120]
[403823341,1769562837606,500.0,0.00035113,120]
[403823342,1769562842642,500.0,0.00035113,120]
[403823343,1769562842883,500.0,0.00035113,120]
[403823344,1769562913777,500.0,0.00035113,120]
[403823345,1769562975358,332.9,0.00035113,120]
[403823346,1769562978463,614.47,0.00035113,120]
[403823347,1769562998961,501.01457806,0.00035113,120]
[403823348,1769562999463,248.35676082,0.00035113,120]
[403823349,1769563038731,500.0,0.00035113,120]
[403823350,1769563046150,500.0,0.00035113,120]
[403823351,1769563088637,647.44,0.00035113,120]
[403823352,1769563202272,159.79,0.000115,2]
[403823355,1769563244922,500.0,0.00034957,120]
[403823358,1769563264091,500.0,0.00034957,120]
[403823359,1769563266916,500.0,0.00034957,120]
[403823360,1769563269851,477.50429273,0.00034957,120]
[403823361,1769563365869,154.754427,0.00034957,120]
[403823362,1769563434733,500.0,0.00034957,120]
[403823363,1769563497400,262.34072608,0.00034957,120]
[403823365,1769563534037,500.0,0.00034957,120]
[403823366,1769563534313,504.96610381,0.00034957,120]
[403823367,1769563576863,399.39,0.00034957,120]
[403823369,1769563593545,513.74582285,0.00034957,120]
[403823370,1769563618726,500.0,0.00034957,120]
[403823371,1769563619921,309.53860644,0.00034957,120]
[403823372,1769563622525,500.0,0.00034957,120]
[403823373,1769563624396,538.78254704,0.00034957,120]
[403823374,1769563627810,500.0,0.00034957,120]
[403823375,1769563629315,454.23472538,0.00034957,120]
[403823376,1769563638736,500.0,0.00034957,120]
[403823377,1769563640569,192.80680885,0.00034957,120]
[403823378,1769563718647,500.06483064,6.546e-05,2]
[403823381,1769563802230,404.95,0.000115,2]
[403823382,1769563806134,278.57583112,0.00034957,120]
[403823383,1769563806591,280.86248527,0.00034957,120]
[403823385,1769563827356,3960.0,0.00034957,120]
[403823414,1769563832569,-850.60969334,0.00011759,2]
[403823416,1769563832580,-486.84352456,0.00011759,2]
[403823448,1769563836696,502.01979641,0.00034957,120]
[403823476,1769563838652,-1147.02920812,0.00011759,2]
[403823478,1769563838661,-275.43261623,0.00011878,2]
[403823480,1769563838670,-587.0,0.00011878,2]
[403823482,1769563838679,-404.95,0.000119,2]
[403823484,1769563838688,-151.0,0.00012,2]
[403823486,1769563838697,-151.0,0.00012,2]
[403823488,1769563838706,-1000000.0,0.00012014,2]
[403823490,1769563838716,-175.30303278,0.00012113,2]
[403823492,1769563838725,-500.0,0.00012113,2]
[403823494,1769563838734,-27211.43033255,0.00012114,2]
[403823495,1769563838743,-300.0,0.00012114,2]
[403823498,1769563838752,-300.0,0.00012114,2]
[403823499,1769563838762,-300.0,0.00012114,2]
[403823501,1769563838771,-300.0,0.00012114,2]
[403823503,1769563838780,-300.0,0.00012114,2]
[403823505,1769563838790,-300.0,0.00012114,2]
[403823507,1769563838799,-300.0,0.00012114,2]
[403823509,1769563838808,-300.0,0.00012114,2]
[403823511,1769563838817,-300.0,0.00012114,2]
[403823513,1769563838827,-300.0,0.00012114,2]
[403823515,1769563838836,-300.0,0.00012114,2]
[403823517,1769563838845,-300.0,0.00012114,2]
[403823520,1769563838855,-300.0,0.00012114,2]
[403823521,1769563838864,-300.0,0.00012114,2]
[403823524,1769563838873,-300.0,0.00012114,2]
[403823526,1769563838884,-404.95,0.000123,2]
[403823528,1769563838893,-667.21,0.00012329,2]
[403823530,1769563838902,-1667.96,0.00012329,2]
[403823532,1769563838911,-1389.97,0.00012329,2]
[403823533,1769563838920,-600.0,0.00012355,2]
[403823536,1769563838929,-404.95,0.000126,2]
[403823538,1769563838939,-185.3812353,0.000126,2]
[403823539,1769563838948,-355.6870106,0.000126,2]
[403823541,1769563838958,-235.9574041,0.000126,2]
[403823543,1769563838967,-185.3812353,0.000126,2]
[403823546,1769563838976,-185.3812353,0.000126,2]
[403823547,1769563838986,-404.95,0.00013,2]
[403823549,1769563838995,-500.0,0.00013273,2]
[403823551,1769563839005,-172.70087908,0.00013273,2]
[403823554,1769563839015,-500.0,0.00013273,2]
[403823555,1769563839024,-500.0,0.00013273,2]
[403823557,1769563839033,-507.06964924,0.00013273,2]
[403823559,1769563839042,-508.3487115,0.00013273,2]
[403823561,1769563839051,-404.95,0.000134,2]
[403823563,1769563839061,-720.0,0.00013591,2]
[403823565,1769563839070,-153.0,0.000136,2]
[403823567,1769563839082,-603.8665126,0.000136,2]
[403823569,1769563839091,-185.3812353,0.000136,2]
[403823571,1769563839101,-603.8665126,0.000136,2]
[403823573,1769563839110,-185.3812353,0.000136,2]
[403823575,1769563839120,-153.0,0.000136,2]
[403823577,1769563839129,-153.0,0.000136,2]
[403823579,1769563839138,-185.3812353,0.000136,2]
[403823581,1769563839149,-185.3812353,0.000136,2]
[403823583,1769563839159,-153.0,0.000136,2]
[403823585,1769563839168,-153.0,0.000136,2]
[403823587,1769563839178,-303.02799168,0.00013673,2]
[403823589,1769563839188,-755.35,0.00013698,2]
[403823591,1769563839198,-755.35,0.00013698,2]
[403823593,1769563839207,-755.35,0.00013698,2]
[403823595,1769563839215,-755.35,0.00013698,2]
[403823597,1769563839225,-755.35,0.00013698,2]
[403823599,1769563839234,-755.35,0.00013698,2]
[403823601,1769563839243,-755.35,0.00013698,2]
[403823603,1769563839252,-755.35,0.00013698,2]
[403823605,1769563839261,-755.35,0.00013698,2]
[403823607,1769563839270,-755.35,0.00013698,2]
[403823609,1769563839279,-755.35,0.00013698,2]
[403823611,1769563839288,-755.35,0.00013698,2]
[403823613,1769563839297,-755.35,0.00013698,2]
[403823615,1769563839306,-755.35,0.00013698,2]
[403823617,1769563839315,-500.0,0.00013698,2]
[403823619,1769563839324,-1084.439454,0.00013699,2]
[403823621,1769563839333,-500.0,0.00013699,2]
[403823623,1769563839342,-363.23539492,0.00013699,2]
[403823625,1769563839351,-500.0,0.00013699,2]
[403823627,1769563839360,-500.0,0.00013699,2]
[403823629,1769563839370,-500.0,0.00013699,2]
[403823631,1769563839378,-500.0,0.00013699,2]
[403823633,1769563839387,-500.0,0.00013699,2]
[403823635,1769563839396,-500.0,0.00013699,2]
[403823637,1769563839408,-500.0,0.00013699,2]
[403823639,1769563839417,-500.0,0.00013699,2]
[403823641,1769563839426,-500.0,0.00013699,2]
[403823643,1769563839435,-500.0,0.00013699,2]
[403823645,1769563839445,-500.0,0.00013699,2]
[403823647,1769563839454,-500.0,0.00013699,2]
[403823649,1769563839464,-501.136229,0.00013699,2]
[403823651,1769563839472,-501.26732235,0.00013699,2]
[403823653,1769563839482,-404.95,0.000138,2]
[403823655,1769563839491,-325.01048715,0.00013878,2]
[403823657,1769563839500,-755.35,0.00014085,2]
[403823659,1769563839509,-159.79,0.000142,2]
[403823661,1769563839518,-404.95,0.000142,2]
[403823663,1769563839527,-755.35,0.00014227,2]
[403823665,1769563839537,-755.35,0.00014227,2]
[403823667,1769563839547,-339.76894093,0.00014247,2]
[403823670,1769563839556,-964.40065032,0.00014247,2]
[403823672,1769563839565,-500.0,0.00014247,2]
[403823674,1769563839579,-897.67574931,0.00014247,2]
[403823677,1769563839593,-404.95,0.000145,2]
[403823679,1769563839603,-755.35,0.00014775,2]
[403823681,1769563839612,-755.35,0.00014775,2]
[403823683,1769563839620,-404.95,0.000149,2]
[403823685,1769563839629,-864.0,0.0001495,2]
[403823687,1769563839638,-1378.0,0.00015277,2]
[403823689,1769563839647,-404.95,0.000153,2]
[403823691,1769563839656,-755.35,0.00015323,2]
[403823693,1769563839665,-755.35,0.00015323,2]
[403823695,1769563839674,-755.35,0.00015323,2]
[403823697,1769563839683,-755.35,0.00015323,2]
[403823699,1769563839692,-755.58907998,0.00015323,2]
[403823701,1769563839702,-160.09522763,0.00015399,2]
[403823703,1769563839711,-676766.54811506,0.000154,2]
[403823705,1769563839720,-404.95,0.000157,2]
[403823707,1769563839730,-374.58835807,0.00015878,2]
[403823709,1769563839739,-163.12616855,0.00016062,2]
[403823711,1769563839748,-404.95,0.000161,2]
[403823713,1769563839758,-404.95,0.000164,2]
[403823715,1769563839767,-200.0,0.00016438,2]
[403823717,1769563839776,-1000.0,0.00016445,2]
[403823719,1769563839785,-159.79,0.000168,2]
[403823721,1769563839795,-404.95,0.000168,2]
[403823723,1769563839804,-161.0,0.00017014,3]
[403823725,1769563839813,-404.95,0.000172,2]
[403823727,1769563839822,-176.0,0.00017286,2]
[403823729,1769563839831,-176.0,0.00017485,2]
[403823731,1769563839840,-9516.08425155,0.000175,3]
[403823733,1769563839849,-720.05633936,0.000176,2]
[403823735,1769563839859,-404.95,0.000176,2]
[403823737,1769563839867,-2150.0,0.00017648,2]
[403823739,1769563839876,-1369.0,0.00017648,2]
[403823741,1769563839886,-630.0,0.00017648,2]
[403823743,1769563839895,-418.0,0.00017648,2]
[403823745,1769563839904,-820.246,0.00017648,2]
[403823747,1769563839914,-180.025,0.00017648,2]
[403823749,1769563839923,-424.16622899,0.00017878,2]
[403823751,1769563839932,-126034.16516033,0.00018,2]
[403823753,1769563839941,-404.95,0.00018,2]
[403823755,1769563839950,-1000.0,0.00018089,2]
[403823757,1769563839959,-244.0,0.00018089,2]
[403823759,1769563839969,-404.95,0.000183,2]
[403823761,1769563839980,-176.0,0.00018343,2]
[403823763,1769563839989,-792.65,0.00018465,2]
[403823765,1769563839999,-176.0,0.00018505,2]
[403823767,1769563840009,-176.0,0.00018583,2]
[403823769,1769563840018,-176.0,0.00018583,2]
[403823770,1769563840028,-326.23935399,0.00018587,2]
[403823771,1769563840037,-257.43265783,0.00018587,2]
[403823772,1769563840046,-404.95,0.000187,2]
[403823774,1769563840056,-160.0,0.00018755,2]
[403823776,1769563840065,-176.0,0.00018815,2]
[403823778,1769563840075,-124115.79733022,0.00018998,2]
[403823779,1769563840086,-32623.51788232,0.00019,2]
[403823780,1769563840096,-250.0,0.00019,2]
[403823781,1769563840106,-250.0,0.00019,2]
[403823782,1769563840116,-250.0,0.00019,2]
[403823783,1769563840135,-250.0,0.00019,2]
[403823784,1769563840146,-217.6,0.00019,2]
[403823785,1769563840156,-404.95,0.000191,2]
[403823786,1769563840166,-507.9828,0.00019178,2]
[403823787,1769563840176,-6364.51,0.000192,2]
[403823788,1769563840186,-162.65,0.000192,2]
[403823789,1769563840195,-171.22,0.000192,2]
[403823790,1769563840205,-5014.91,0.000192,2]
[403823791,1769563840214,-159.79,0.000195,2]
[403823792,1769563840224,-404.95,0.000195,2]
[403823793,1769563840233,-500.0072,0.00019589,3]
[403823794,1769563840243,-779.0,0.000196,2]
[403823795,1769563840253,-168.0,0.00019653,2]
[403823796,1769563840262,-500.0,0.0001971,2]
[403823797,1769563840272,-473.74409991,0.00019878,2]
[403823798,1769563840281,-1000.0,0.00019898,2]
[403823799,1769563840291,-492.0,0.00019898,2]
[403823800,1769563840300,-404.95,0.000199,2]
[403823801,1769563840310,-2000.0,0.0002,7]
[403823802,1769563840320,-2000.0,0.0002,7]
[403823803,1769563840331,-2000.0,0.0002,7]
[403823804,1769563840341,-2000.0,0.0002,7]
[403823805,1769563840350,-2000.0,0.0002,7]
[403823806,1769563840359,-2000.0,0.0002,7]
[403823807,1769563840370,-2000.0,0.0002,7]
[403823808,1769563840379,-2000.0,0.0002,7]
[403823809,1769563840389,-500.0,0.0002,2]
[403823814,1769563840570,-250.0,0.0002,10]
[403823817,1769563840580,-2020818.3203534,0.0002,2]
[403823819,1769563840593,-16094.85708563,0.0002,2]
[403823821,1769563840604,-490.17253356,0.0002,2]
[403823824,1769563840615,-1739.77920872,0.0002,2]
[403823826,1769563840626,-2565.59023495,0.0002,2]
[403823858,1769563840920,-1158.3,0.00012329,2]
[403823860,1769563840929,-96.7710825,0.00018755,2]
[403823872,1769563841034,-944.89558417,0.00018755,2]
[403823874,1769563841043,-45060.53218862,0.0002,2]
[403824017,1769563843935,-4135.92347508,0.0002,2]
[403824028,1769563847136,-6260.91114423,0.0002,2]
[403824037,1769563854958,2755.0,0.00034957,120]
[403824038,1769563861179,181.49017688,0.0003,120]
[403824040,1769563882652,150.62975365,0.00034957,120]
[403824041,1769563900963,323.88082505,0.00034957,120]
[403824042,1769563916520,629.5954535,0.00034957,120]
[403824043,1769563921911,263.53777185,0.00034957,120]
[403824044,1769563926638,298.8594075,0.00034957,120]
[403824045,1769563926687,502.32860999,0.00034957,120]
[403824046,1769563931921,162.41160987,0.00034957,120]
[403824047,1769563932406,500.78088759,0.00034957,120]
[403824048,1769563935182,501.78241351,0.00034957,120]
[403824049,1769563937650,203.77762968,0.00034957,120]
[403824050,1769563946095,161.76840789,0.00034957,120]
[403824051,1769563951610,442.68606422,0.00034957,120]
[403824052,1769563951920,264.69882491,0.00034957,120]
[403824053,1769563977719,412.71765762,0.00034957,120]
[403824054,1769563981555,290.98233789,0.00034957,120]
[403824055,1769563983498,500.0,0.00034957,120]
[403824056,1769563983746,500.0,0.00034957,120]
[403824057,1769563984348,221.34330306,0.00034957,120]
[403824058,1769563988504,333.5392483,0.00034957,120]
[403824059,1769564003445,247.13507538,0.00034957,120]
[403824060,1769564018579,265.02866097,0.00034957,120]
[403824061,1769564023231,360.99133917,0.00034957,120]
[403824062,1769564066970,150.97711047,0.0003518,120]
[403824063,1769564219151,1566.71180276,0.0003518,120]
[403824064,1769564225194,-843.223,0.00011774,2]
[403824065,1769564225227,-243.97350585,0.00011894,2]
[403824066,1769564225258,-300.0,0.00012013,2]
[403824067,1769564262493,163.83506214,0.0003518,120]
[403824068,1769564401437,300.0,0.00012013,2]
[403824069,1769564402246,163.8,0.000115,2]
[403824070,1769564409271,150.68674108,0.00034936,120]
[403824071,1769564444549,202.07587397,0.00034936,120]
[403824072,1769564472553,229.18815053,0.00012013,2]
[403824073,1769564473221,500.0,0.00012013,2]
[403824074,1769564473250,500.0,0.00012013,2]
[403824075,1769564473278,500.0,0.00012013,2]
[403824076,1769564473310,500.0,0.00012013,2]
[403824077,1769564473337,500.0,0.00012013,2]
[403824078,1769564473370,500.0,0.00012013,2]
[403824079,1769564473398,500.0,0.00012013,2]
[403824080,1769564473426,500.0,0.00012013,2]
[403824081,1769564473453,500.0,0.00012013,2]
[403824082,1769564473480,500.0,0.00012013,2]
[403824083,1769564473507,500.0,0.00012013,2]
[403824084,1769564473532,333.14957565,0.00012013,2]
[403824085,1769564473562,500.0,0.00012013,2]
[403824086,1769564473691,199.47926212,0.00012013,2]
[403824087,1769564473712,300.52073788,0.00012013,2]
[403824088,1769564473739,500.0,0.00012013,2]
[403824089,1769564473767,500.0,0.00012013,2]
[403824090,1769564473793,500.0,0.00012013,2]
[403824091,1769564473820,500.0,0.00012013,2]
[403824092,1769564473846,500.0,0.00012013,2]
[403824093,1769564473873,500.0,0.00012013,2]
[403824094,1769564473902,500.0,0.00012013,2]
[403824095,1769564473930,500.0,0.00012013,2]
[403824096,1769564473959,500.0,0.00012013,2]
[403824097,1769564473988,500.0,0.00012013,2]
[403824098,1769564474016,500.0,0.00012013,2]
[403824099,1769564474045,650.0,0.00012013,2]
[403824100,1769564474078,500.0,0.00012013,2]
[403824101,1769564474106,500.0,0.00012013,2]
[403824102,1769564474135,500.0,0.00012013,2]
[403824103,1769564474164,500.0,0.00012013,2]
[403824104,1769564474194,500.0,0.00012013,2]
[403824105,1769564474223,500.0,0.00012013,2]
[403824106,1769564474254,500.0,0.00012013,2]
[403824107,1769564474286,49.48926212,0.00012013,2]
[403824108,1769564524833,-2354.90446496,0.00011656,2]
[403824109,1769564555051,-660.55388347,0.00011656,2]
[403824110,1769564564233,2102.8339493,0.00011014,2]
[403824111,1769564793043,448.91,0.00034936,120]
[403824112,1769564898366,4192.88047246,0.00034936,120]
[403824131,1769565031703,-438.03028355,0.00011774,2]
[403824249,1769565037810,-236.54771645,0.00011774,2]
[403824250,1769565037820,-586.0,0.00011774,2]
[403824251,1769565037828,-244.31228256,0.00011893,2]
[403824252,1769565037837,-300.0,0.00011912,2]
[403824253,1769565037847,-1200.0,0.00011912,2]
[403824254,1769565037856,-1690.68269519,0.00011913,2]
[403824255,1769565037872,-16094.85708563,0.00011913,2]
[403824395,1769565039968,-324.1313025,0.00011913,2]
[403824476,1769565044121,-442.81646,0.00011913,2]
[403824477,1769565044132,-25801.87429908,0.00011913,2]
[403824483,1769565046019,-22145.20705886,0.00011913,2]
[403824484,1769565046031,-280.2939363,0.00011913,2]
[403824486,1769565106835,501.6642161,0.00034936,120]
[403824487,1769565109049,-539.663,0.00011675,2]
[403824488,1769565114523,501.40931288,0.00034936,120]
[403824489,1769565133935,614.48,0.00034936,120]
[403824490,1769565134657,267.67196421,0.00034936,120]
[403824491,1769565142671,162.80093627,0.00034936,120]
[403824492,1769565143050,301.3464152,0.00034936,120]
[403824493,1769565146651,611.94321011,0.00034936,120]
[403824494,1769565147350,225.32459482,0.00034936,120]
[403824495,1769565154035,204.64502647,0.00034936,120]
[403824496,1769565161765,293.15143858,0.00034936,120]
[403824497,1769565170455,500.0,0.00034936,120]
[403824498,1769565191061,321.02009147,0.00034936,120]
[403824499,1769565197220,417.14608606,0.00034936,120]
[403824500,1769565204679,298.57222964,0.00034936,120]
[403824501,1769565205906,324.33443701,0.00034936,120]
[403824502,1769565208461,356.20794768,0.00034936,120]
[403824503,1769565214605,500.0,0.00034936,120]
[403824504,1769565214957,500.0,0.00034936,120]
[403824505,1769565215243,500.0,0.00034936,120]
[403824506,1769565215495,551.9301965,0.00034936,120]
[403824507,1769565215578,500.0,0.00034936,120]
[403824508,1769565215835,529.05208668,0.00034936,120]
[403824509,1769565220562,500.0,0.00034936,120]
[403824510,1769565220797,500.0,0.00034936,120]
[403824511,1769565221038,289.1216362,0.00034936,120]
[403824512,1769565229418,500.0,0.00034935,120]
[403824513,1769565229664,510.3464989,0.00034935,120]
[403824514,1769565240862,2356.64,0.000115,2]
[403824515,1769565252747,194.90228238,0.00034935,120]
[403824516,1769565253136,194.90228238,0.00034935,120]
[403824517,1769565253519,194.90228238,0.00034935,120]
[403824518,1769565253896,194.90228238,0.00034935,120]
[403824519,1769565254302,194.90228238,0.00034935,120]
[403824520,1769565254963,194.90228238,0.00034935,120]
[403824521,1769565255021,194.90228238,0.00034935,120]
[403824522,1769565318196,151.22000548,0.00034935,120]
[403824523,1769565338566,500.0,0.00034935,120]
[403824524,1769565338816,508.87189686,0.00034935,120]
[403824525,1769565356021,614.48,0.00034935,120]
[403824526,1769565418279,500.0,0.00034935,120]
[403824527,1769565434363,630.69965376,0.00034935,120]
[403824528,1769565490425,526.93940805,0.00034935,120]
[403824529,1769565513857,506.68496709,0.00034935,120]
[403824530,1769565552761,194.90228235,0.00034955,120]
[403824531,1769565621472,-300.0,0.00011908,2]
[403824532,1769565621498,-20.27,0.00011908,2]
[403824533,1769565666822,432.80564887,0.00034955,120]
[403824534,1769565709073,-431.73,0.00011675,2]
[403824535,1769565746445,-300.0,0.00011907,2]
[403824536,1769565746466,-252.60423879,0.00011908,2]
[403824537,1769565746487,-447.39576121,0.00011908,2]
[403824538,1769565748304,-752.60423879,0.00011908,2]
[403824539,1769565748325,-247.39576121,0.00011908,2]
[403824540,1769565749193,-252.60423879,0.00011908,2]
[403824541,1769565749215,-588.0,0.00011908,2]
[403824542,1769565749235,-159.39576121,0.00011908,2]
[403824543,1769565749664,-340.60423879,0.00011908,2]
[403824544,1769565749684,-500.0,0.00011908,2]
[403824545,1769565749709,-159.39576121,0.00011909,2]
[403824546,1769565750116,-1000.0,0.00011909,2]
[403824547,1769565750486,-1000.0,0.00011909,2]
[403824548,1769565750809,-1000.0,0.00011909,2]
[403824549,1769565752396,-1000.0,0.00011909,2]
[403824550,1769565756193,-500.0,0.00011909,2]
[403824551,1769565773073,616.609193,0.00034955,120]
[403824552,1769565937566,500.0,0.00034955,120]
[403824553,1769565937796,500.0,0.00034955,120]
[403824554,1769565938038,500.0,0.00034955,120]
[403824555,1769565938319,500.0,0.00034955,120]
[403824556,1769565938567,500.0,0.00034955,120]
[403824557,1769565938818,500.0,0.00034955,120]
[403824558,1769565939064,193.62861482,0.00034955,120]
[403824559,1769565945535,500.0,0.00034955,120]
[403824560,1769565945751,509.59118795,0.00034955,120]
[403824561,1769565964030,500.0,0.00034955,120]
[403824562,1769565964385,507.75637831,0.00034955,120]